bitfinex/quotes_SOLUSD_20250206
["timestamp","ask_amount","ask_price","bid_price","bid_amount"]
[1738821011363,3.6e-06,201.68,201.6,6.0112]
[1738821011552,10.13006502,201.68,201.6,6.0112]
[1738821011748,10.13006502,201.68,201.61,13.66282853]
[1738821011954,13.50674856,201.7,201.59,74.19838378]
[1738821012144,13.50674856,201.7,201.69,29.48031396]
[1738821012554,13.50674856,201.7,201.69,14.74015698]
[1738821012755,52.36619863,201.79,201.73,0.12549]
[1738821012964,52.36619863,201.79,201.78,14.74015698]
[1738821013344,52.36619863,201.79,201.77,14.74015698]
[1738821013544,1.0,201.78,201.77,14.74015698]
[1738821014145,1.0,201.78,201.76,14.74015698]
[1738821014541,1.0,201.77,201.76,14.74015698]
[1738821014747,1.0,201.77,201.74,14.74015698]
[1738821014960,1.0,201.76,201.74,14.74015698]
[1738821015448,1.0,201.76,201.73,14.74015698]
[1738821015647,1.0,201.74,201.73,14.74015698]
[1738821015947,2.0,201.74,201.73,14.74015698]
[1738821016153,1.0,201.72,201.7,14.74015698]
[1738821016463,1.0,201.7,201.68,14.74015698]
[1738821016771,1.0,201.68,201.67,14.74015698]
[1738821017353,1.0,201.68,201.66,14.74015698]
[1738821018063,1.0,201.68,201.67,14.74015698]
[1738821018467,1.0,201.7,201.67,14.74015698]
[1738821018659,1.0,201.7,201.69,23.6003986]
[1738821019063,1.0,201.7,201.68,23.6003986]
[1738821019975,1.0,201.7,201.69,23.6003986]
[1738821021376,1.0,201.7,201.67,23.6003986]
[1738821021577,1.0,201.7,201.65,43.6003986]
[1738821021757,1.0,201.66,201.63,23.6003986]
[1738821022076,1.0,201.67,201.63,23.6003986]
[1738821022077,1.0,201.64,201.63,23.6003986]
[1738821022482,1.0,201.64,201.6,4.9603]
[1738821022483,1.0,201.64,201.61,23.6003986]
[1738821022669,1.0,201.62,201.6,4.9603]
[1738821022865,1.0,201.62,201.61,20.0]
[1738821023261,1.0,201.62,201.61,43.6003986]
[1738821023456,1.0,201.64,201.61,43.6003986]
[1738821023861,1.0,201.64,201.63,0.03]
[1738821024262,1.0,201.65,201.63,23.6303986]
[1738821024481,1.0,201.66,201.63,23.6303986]
[1738821025093,1.0,201.64,201.63,23.6303986]
[1738821025462,1.0,201.64,201.63,0.03]
[1738821032481,1.0,201.66,201.63,23.6303986]
[1738821032689,1.0,201.66,201.65,23.6003986]
[1738821032889,0.0001,201.7,201.69,13.66282853]
[1738821033190,1.0,201.77,201.72,20.0]
[1738821033382,1.0,201.77,201.76,23.6003986]
[1738821034387,52.36619863,201.79,201.76,23.6003986]
[1738821034579,52.36619863,201.79,201.78,23.6003986]
[1738821034970,1.0,201.77,201.75,23.6003986]
[1738821035892,1.0,201.77,201.74,23.6003986]
[1738821036190,1.0,201.75,201.74,23.6003986]
[1738821036690,1.0,201.75,201.74,28.5571986]
[1738821037568,1.0,201.75,201.74,4.9568]
[1738821038187,1.063,201.77,201.74,28.5571986]
[1738821038489,1.0,201.75,201.74,28.5571986]
[1738821038684,1.0,201.75,201.74,4.9568]
[1738821039171,1.063,201.77,201.74,4.9568]
[1738821039980,1.063,201.77,201.75,19.69819091]
[1738821040299,1.063,201.77,201.76,14.74169091]
[1738821041296,0.063,201.77,201.76,14.74169091]
[1738821041600,1.063,201.77,201.76,14.74169091]
[1738821041899,0.063,201.77,201.76,14.74169091]
[1738821043271,1.063,201.77,201.75,19.69819091]
[1738821043894,0.063,201.77,201.75,19.69819091]
[1738821045908,0.0001,201.77,201.76,13.66282853]
[1738821046306,0.0001,201.77,201.76,28.40451944]
[1738821046996,0.0001,201.77,201.76,33.36081944]
[1738821053685,0.0001,201.77,201.76,5.08179]
[1738821054970,0.0001,201.77,201.76,19.82348091]
[1738821060302,0.0001,201.77,201.76,19.85348091]
[1738821062301,0.0001,201.77,201.76,5.11179]
[1738821062505,0.0001,201.77,201.76,4.9863]
[1738821063208,0.0001,201.77,201.76,5.11179]
[1738821063583,0.0001,201.77,201.76,19.85348091]
[1738821063805,0.0001,201.77,201.76,33.39081944]
[1738821066110,0.0001,201.77,201.76,33.64179944]
[1738821068110,0.0001,201.77,201.76,33.39081944]
[1738821068587,0.0001,201.77,201.76,4.9863]
[1738821068787,1.0001,201.77,201.76,0.03]
[1738821069203,2.0001,201.77,201.76,0.03]
[1738821074107,0.0001,201.77,201.76,14.89718091]
[1738821075497,0.0001,201.77,201.76,19.72799091]
[1738821075914,0.0001,201.77,201.76,14.77169091]
[1738821076092,1.0001,201.77,201.76,0.03]
[1738821081420,0.0001,201.77,201.76,14.89718091]
[1738821081717,0.0001,201.77,201.76,28.68549944]
[1738821083416,1.0,201.86,201.8,20.50196]
[1738821083601,1.0,201.86,201.85,14.74169091]
[1738821084011,1.0,201.88,201.85,14.74169091]
[1738821084331,1.0,201.88,201.87,14.74169091]
[1738821086503,1.0,201.88,201.86,14.74169091]
[1738821086716,1.0,201.88,201.85,19.69569091]
[1738821087501,1.0,201.88,201.87,14.74169091]
[1738821088105,1.0,201.88,201.87,19.69529091]
[1738821089495,1.0,201.88,201.87,14.74169091]
[1738821090126,1.0,201.9,201.87,14.74169091]
[1738821090328,1.0,201.9,201.88,14.74169091]
[1738821092525,1.0,201.9,201.88,19.69509091]
[1738821095134,0.063,201.91,201.9,0.12549]
[1738821095309,0.063,201.91,201.9,14.86718091]
[1738821096526,0.063,201.91,201.9,28.40451944]
[1738821096717,0.063,201.91,201.9,33.35741944]
[1738821097415,0.063,201.91,201.9,33.60839944]
[1738821097725,7.6389,201.98,201.93,20.0]
[1738821097912,7.6389,201.98,201.96,14.74169091]
[1738821099014,1.063,201.98,201.96,14.74169091]
[1738821099535,1.0,201.97,201.96,14.74169091]
[1738821099746,1.0,201.95,201.93,14.74169091]
[1738821101731,1.0,201.94,201.91,14.74169091]
[1738821101918,1.0,201.93,201.9,19.69439091]
[1738821102332,2.0,201.91,201.89,14.74169091]
[1738821102722,2.0,201.89,201.87,14.74169091]
[1738821103612,2.0,201.89,201.87,4.9536]
[1738821103827,2.0,201.89,201.87,19.69529091]
[1738821104538,2.0,201.87,201.84,14.74169091]
[1738821104935,2.0,201.87,201.85,14.74169091]
[1738821105236,1.0,201.87,201.86,14.74169091]
[1738821105918,2.0,201.87,201.85,19.69569091]
[1738821106218,2.0,201.87,201.85,14.74169091]
[1738821107728,1.0,201.85,201.84,14.74169091]
[1738821108635,2.0,201.91,201.87,20.0]
[1738821108842,2.0,201.91,201.9,14.74169091]
[1738821111042,2.0,201.93,201.9,19.69449091]
[1738821111242,2.0,201.93,201.91,14.74169091]
[1738821112029,2.0,201.93,201.9,14.74169091]
[1738821112840,2.0,201.93,201.9,19.69459091]
[1738821115559,1.0,201.91,201.88,14.74169091]
[1738821115736,1.0,201.9,201.87,20.0]
[1738821118152,1.0,201.9,201.87,34.74169091]
[1738821118349,1.0,201.9,201.88,4.9534]
[1738821120944,1.0,201.9,201.85,0.25098]
[1738821120945,1.0,201.88,201.85,19.69579091]
[1738821121137,6.5912,201.94,201.84,0.03]
[1738821121138,1.0,201.85,201.84,0.03]
[1738821121446,1.0,201.87,201.84,14.77169091]
[1738821121624,1.0,201.87,201.85,14.74169091]
[1738821122369,2.0,201.85,201.84,0.03]
[1738821122653,11.43249823,201.85,201.84,0.03]
[1738821124742,16.73715276,201.85,201.84,0.03]
[1738821130769,2.0,201.85,201.84,0.03]
[1738821136075,1.0,201.85,201.84,0.03]
[1738821136271,1.0,201.88,201.84,0.15549]
[1738821136481,2.0,201.88,201.87,13.41184853]
[1738821140752,2.0,201.88,201.87,28.14900129]
[1738821141989,1.0,201.85,201.84,0.03]
[1738821145471,1.0,201.85,201.84,28.17900129]
[1738821145646,2.0,201.88,201.84,28.17900129]
[1738821145949,2.0,201.88,201.86,13.41184853]
[1738821146471,8.5499,201.78,201.77,0.03]
[1738821146651,21.78911356,201.78,201.77,0.03]
[1738821147353,16.83331356,201.78,201.77,0.03]
[1738821147554,7.3941,201.78,201.77,0.03]
[1738821148881,1.0,201.78,201.77,13.44184853]
[1738821149053,1.0,201.8,201.77,13.44184853]
[1738821149773,1.0,201.78,201.77,0.03]
[1738821150075,2.0,201.78,201.77,0.03]
[1738821150380,14.74210514,201.81,201.78,13.41184853]
[1738821150381,2.0,201.81,201.78,13.41184853]
[1738821150977,1.0,201.79,201.78,13.41184853]
[1738821151174,2.0,201.81,201.78,13.41184853]
[1738821151365,2.0,201.81,201.78,28.15395367]
[1738821152380,1.0,201.81,201.79,19.94858514]
[1738821152681,2.0,201.84,201.81,0.12549]
[1738821152878,2.0,201.84,201.83,13.41184853]
[1738821154881,2.0,201.84,201.82,28.15395367]
[1738821156080,2.0,201.84,201.82,13.41184853]
[1738821156460,2.0,201.84,201.83,0.03]
[1738821156673,2.063,201.84,201.83,0.03]
[1738821161185,2.063,201.84,201.83,14.77210514]
[1738821161367,2.063,201.84,201.83,28.18395367]
[1738821162892,2.063,201.84,201.83,13.44184853]
[1738821163488,2.063,201.84,201.83,28.18395367]
[1738821167691,1.063,201.84,201.83,33.13855367]
[1738821170099,0.063,201.84,201.83,33.13855367]
[1738821170396,0.063,201.84,201.83,33.26404367]
[1738821170695,0.063,201.84,201.83,27.94640857]
[1738821173074,0.063,201.84,201.83,28.19738857]
[1738821177796,0.063,201.84,201.83,27.94640857]
[1738821179482,1.063,201.84,201.83,13.44184853]
[1738821179884,1.063,201.84,201.83,18.39644853]
[1738821180502,0.063,201.84,201.83,27.82091857]
[1738821180823,0.063,201.84,201.83,27.94640857]
[1738821182206,0.063,201.84,201.83,27.82091857]
[1738821182711,0.063,201.84,201.83,27.94640857]
[1738821184821,2.063,201.91,201.87,13.53733853]
[1738821184993,2.063,201.91,201.89,13.41184853]
[1738821185698,0.063,201.91,201.9,22.96180857]
[1738821187117,0.063,201.91,201.9,27.91470857]
[1738821190596,0.063,201.91,201.9,28.04019857]
[1738821190811,0.063,201.98,201.94,20.0]
[1738821191010,0.063,201.98,201.96,9.42447004]
[1738821192022,1.0,201.97,201.96,27.78771857]
[1738821192198,1.0,201.97,201.96,18.36324853]
[1738821192712,0.063,201.98,201.97,13.41184853]
[1738821192895,0.063,201.98,201.97,22.83631857]
[1738821193914,0.063,201.98,201.97,22.96180857]
[1738821194115,0.063,201.98,201.97,23.08729857]
[1738821195010,0.063,202.02,201.98,17.57928]
[1738821195212,0.063,202.02,202.0,9.42447004]
[1738821195417,1.0,202.0,201.98,14.37537004]
[1738821197520,2.0,202.0,201.98,14.37537004]
[1738821197709,2.0,202.0,201.98,4.9509]
[1738821198016,1.0,201.98,201.96,4.9513]
[1738821198319,2.0,201.98,201.96,4.9513]
[1738821198518,1.0,202.0,201.97,22.83631857]
[1738821198906,1.0,202.0,201.99,13.41184853]
[1738821199620,1.0,202.0,201.99,18.36254853]
[1738821199827,0.063,202.02,201.99,18.36254853]
[1738821199828,1.063,202.02,201.99,27.78701857]
[1738821200123,1.063,202.02,202.01,13.41184853]
[1738821200310,0.063,202.02,202.01,22.83631857]
[1738821203240,1.063,202.02,202.01,22.83631857]
[1738821204335,1.0,202.01,202.0,9.42447004]
[1738821205310,1.0,202.01,202.0,22.83631857]
[1738821206116,0.063,202.02,202.01,13.41184853]
[1738821206311,0.063,202.02,202.01,9.42447004]
[1738821206526,0.063,202.02,202.01,28.16298857]
[1738821207534,0.063,202.02,202.01,28.03749857]
[1738821208018,0.063,202.02,202.01,27.91200857]
[1738821214927,0.063,202.05,202.04,20.0]
[1738821215127,0.063,202.05,202.04,29.42447004]
[1738821215923,0.063,202.05,202.04,34.37397004]
[1738821220138,0.063,202.05,202.04,48.03679857]
[1738821225858,0.0001,202.05,202.04,48.28777857]
[1738821226053,0.0001,202.05,202.04,48.16228857]
[1738821231754,0.0001,202.05,202.04,47.81581857]
[1738821240687,0.0001,202.05,202.04,9.45447004]
[1738821240688,1.0001,202.05,202.04,9.45447004]
[1738821240895,1.0001,202.05,202.04,0.03]
[1738821241083,8.7865,202.05,202.04,0.03]
[1738821244694,1.0001,202.05,202.04,22.86631857]
[1738821245068,0.0001,202.05,202.04,22.86631857]
[1738821246494,0.0001,202.05,202.04,27.81581857]
[1738821247680,1.0001,202.05,202.04,9.45447004]
[1738821251080,1.0001,202.05,202.04,22.86631857]
[1738821251284,0.0001,202.05,202.04,27.81581857]
[1738821253195,1.0001,202.05,202.04,22.86631857]
[1738821253597,1.0001,202.05,202.04,9.45447004]
[1738821254580,1.0001,202.05,202.04,14.40397004]
[1738821254785,0.0001,202.05,202.04,27.81581857]
[1738821255491,0.0001,202.05,202.04,27.94130857]
[1738821255695,1.0,202.1,202.05,13.66282853]
[1738821255875,1.0,202.1,202.09,22.83631857]
[1738821256195,1.063,202.11,202.1,13.41184853]
[1738821256396,1.063,202.11,202.1,22.83631857]
[1738821256778,1.063,202.11,202.1,27.78431857]
[1738821257899,0.063,202.11,202.1,27.78431857]
[1738821258406,0.063,202.11,202.1,65.48219873]
[1738821259303,0.063,202.11,202.1,27.78431857]
[1738821260899,0.063,202.11,202.1,27.90980857]
[1738821261109,0.063,202.11,202.1,65.60768873]
[1738821261885,0.063,202.11,202.1,65.73317873]
[1738821263413,0.063,202.11,202.1,65.85866873]
[1738821263595,0.063,202.12,202.11,23.08729857]
[1738821264091,0.063,202.12,202.11,23.33827857]
[1738821265399,0.063,202.12,202.11,28.03509857]
[1738821265579,0.063,202.12,202.11,27.90960857]
[1738821266182,0.063,202.12,202.11,27.78411857]
[1738821266383,1.063,202.12,202.11,22.83631857]
[1738821266578,0.063,202.12,202.11,22.83631857]
[1738821266801,0.063,202.12,202.11,27.78411857]
[1738821280528,0.063,202.12,202.11,27.81411857]
[1738821283229,2.0,202.18,202.15,0.12549]
[1738821283450,2.0,202.18,202.17,9.42447004]
[1738821283597,2.0,202.18,202.17,22.83631857]
[1738821287824,2.0,202.18,202.17,9.42447004]
[1738821288026,2.0,202.18,202.16,9.42447004]
[1738821291639,2.0,202.18,202.17,9.42447004]
[1738821292618,2.0,202.18,202.16,9.42447004]
[1738821294034,2.063,202.18,202.16,9.42447004]
[1738821300525,1.0,202.16,202.15,9.42447004]
[1738821300730,2.0,202.16,202.15,9.42447004]
[1738821305244,1.0,202.16,202.15,27.78311857]
[1738821305440,2.063,202.18,202.15,27.78311857]
[1738821305628,2.063,202.18,202.17,9.42447004]
[1738821308217,2.063,202.18,202.17,27.78261857]
[1738821310843,2.063,202.18,202.17,9.42447004]
[1738821311032,2.0,202.15,202.14,14.37147004]
[1738821311234,2.0,202.15,202.14,27.78331857]
[1738821315545,2.0,202.15,202.14,22.83631857]
[1738821315749,2.0,202.15,202.13,9.42447004]
[1738821316053,2.0,202.15,202.13,13.41184853]
[1738821316245,2.0,202.15,202.14,9.42447004]
[1738821319357,2.0,202.15,202.14,22.83631857]
[1738821319536,0.063,202.16,202.15,13.41184853]
[1738821319739,0.063,202.16,202.15,22.96180857]
[1738821320142,0.063,202.16,202.15,23.21278857]
[1738821320451,0.063,202.18,202.17,33.66282853]
[1738821320654,0.063,202.18,202.17,43.08729857]
[1738821321170,0.063,202.23,202.21,33.91380853]
[1738821321465,0.03,202.26,202.25,33.66282853]
[1738821322035,0.03,202.26,202.25,43.08729857]
[1738821322246,0.03,202.31,202.29,20.0]
[1738821322451,0.03,202.31,202.3,22.83631857]
[1738821323939,0.03,202.31,202.3,60.78517873]
[1738821324551,0.03,202.31,202.3,22.83631857]
[1738821324752,0.03,202.31,202.3,60.78517873]
[1738821326645,0.03,202.31,202.3,23.08729857]
[1738821328565,0.03,202.31,202.3,32.51176861]
[1738821328872,0.03,202.31,202.3,60.78517873]
[1738821329985,0.03,202.31,202.3,23.08729857]
[1738821330583,0.03,202.31,202.3,22.83631857]
[1738821332285,0.03,202.31,202.3,13.41184853]
[1738821332856,2.0,202.3,202.29,9.42447004]
[1738821333776,2.0,202.3,202.28,9.42447004]
[1738821333971,2.0,202.28,202.27,9.42447004]
[1738821335074,2.0,202.28,202.27,22.83631857]
[1738821343894,2.0,202.28,202.26,9.45447004]
[1738821344094,2.0,202.28,202.27,20.0]
[1738821344573,2.0,202.28,202.26,0.03]
[1738821346772,6.9436,202.28,202.26,0.03]
[1738821348082,16.36807004,202.28,202.26,0.03]
[1738821348393,10.35166192,202.27,202.26,0.03]
[1738821348595,10.47715192,202.27,202.26,0.03]
[1738821348903,10.60264192,202.27,202.26,0.03]
[1738821349196,10.47715192,202.27,202.26,0.03]
[1738821350170,17.29535952,202.28,202.26,0.03]
[1738821350369,9.42447004,202.27,202.26,0.03]
[1738821350597,16.12355004,202.27,202.26,0.03]
[1738821353203,6.4481,202.27,202.26,0.03]
[1738821353417,10.1681,202.27,202.26,0.03]
[1738821355382,15.1119,202.27,202.26,0.03]
[1738821355597,15.1749,202.27,202.26,0.03]
[1738821357009,0.063,202.27,202.26,0.03]
[1738821363209,0.063,202.27,202.26,13.44184853]
[1738821363414,0.063,202.27,202.26,18.38594853]
[1738821364007,0.063,202.27,202.26,27.81041857]
[1738821364313,0.063,202.27,202.26,22.86631857]
[1738821365114,0.063,202.27,202.26,9.45447004]
[1738821365305,0.063,202.27,202.26,0.03]
[1738821369216,0.063,202.27,202.26,9.45447004]
[1738821370609,5.0068,202.27,202.26,0.03]
[1738821370832,14.43127004,202.27,202.26,0.03]
[1738821374406,5.0068,202.27,202.26,0.03]
[1738821375430,0.063,202.27,202.26,0.03]
[1738821382524,0.063,202.27,202.26,9.45447004]
[1738821383401,0.063,202.27,202.26,0.03]
[1738821387726,0.063,202.27,202.26,9.45447004]
[1738821400847,0.063,202.27,202.26,14.39857004]
[1738821401053,0.063,202.27,202.26,27.81041857]
[1738821406018,0.063,202.27,202.26,22.86631857]
[1738821423354,0.063,202.27,202.26,9.45447004]
[1738821430143,0.063,202.27,202.26,27.93590857]
[1738821432043,0.063,202.27,202.26,25.93590857]
[1738821436774,0.063,202.27,202.26,25.96590857]
[1738821437571,0.063,202.27,202.26,7.48447004]
[1738821443563,2.0,202.2,202.18,9.42447004]
[1738821443765,2.0,202.17,202.16,17.11109547]
[1738821443966,2.0,202.17,202.16,7.68662543]
[1738821446792,2.0,202.17,202.15,9.42447004]
[1738821447185,1.0,202.15,202.13,9.42447004]
[1738821447378,1.0,202.14,202.13,9.42447004]
[1738821448277,1.0,202.14,202.12,9.45447004]
[1738821448482,1.0,202.14,202.12,0.03]
[1738821448893,1.0,202.14,202.12,9.45447004]
[1738821449094,1.0,202.14,202.13,9.42447004]
[1738821449803,1.0,202.14,202.12,9.45447004]
[1738821452107,1.0,202.14,202.13,9.42447004]
[1738821455678,1.0,202.14,202.13,27.90910857]
[1738821455885,1.0,202.15,202.13,27.90910857]
[1738821456191,1.0,202.15,202.14,9.42447004]
[1738821472510,1.0,202.15,202.14,9.45447004]
[1738821484929,1.0,202.16,202.14,14.40147004]
[1738821485311,1.0,202.16,202.15,9.42447004]
[1738821487208,1.0,202.16,202.14,9.45447004]
[1738821488635,1.0,202.15,202.14,0.03]
[1738821493127,83.4,202.15,202.14,0.03]
[1738821503353,98.82443633,202.15,202.14,0.03]
[1738821503560,97.89676004,202.15,202.14,0.03]
[1738821505156,97.77127004,202.15,202.14,0.03]
[1738821506772,88.3468,202.15,202.14,0.03]
[1738821506972,89.27458972,202.15,202.14,0.03]
[1738821507443,88.3468,202.15,202.14,0.03]
[1738821507966,5.9468,202.15,202.14,0.03]
[1738821508575,1.0,202.15,202.14,0.03]
[1738821510742,1.0,202.15,202.13,7.48447004]
[1738821510943,1.0,202.15,202.12,9.45447004]
[1738821511157,1.0,202.13,202.12,9.45447004]
[1738821512062,4.25098,202.06,202.05,0.03]
[1738821512275,2.0,201.99,201.98,0.03]
[1738821512561,13.47846758,201.99,201.98,0.03]
[1738821513257,2.0,201.99,201.98,0.03]
[1738821513983,13.54996004,201.99,201.98,0.03]
[1738821514344,18.50066004,201.99,201.98,0.03]
[1738821516365,1.0,201.94,201.93,0.03]
[1738821516665,5.72,201.94,201.93,0.03]
[1738821517550,54.0,201.92,201.91,0.03]
[1738821517875,54.0,201.92,201.75,9.42447004]
[1738821517876,2.0,201.77,201.75,9.42447004]
[1738821518059,1.0,201.72,201.71,4.9576]
[1738821518980,1.0,201.72,201.71,9.54996004]
[1738821519457,1.0,201.72,201.71,22.96180857]
[1738821520364,1.0,201.74,201.71,28.29587857]
[1738821520554,1.0,201.75,201.74,33.66282853]
[1738821521172,1.0,201.75,201.74,48.40026754]
[1738821521746,1.0,201.75,201.74,53.35706754]
[1738821525081,1.0,201.76,201.75,13.91380853]
[1738821525248,1.0,201.81,201.79,13.66282853]
[1738821525443,1.0,201.81,201.8,28.14928754]
[1738821525770,1.0,201.81,201.8,14.73743901]
[1738821529479,1.0,201.81,201.8,28.27477754]
[1738821530150,1.0,201.81,201.8,28.40026754]
[1738821531667,1.0,201.81,201.8,33.35566754]
[1738821539756,1.0,201.81,201.8,19.81832901]
[1738821542580,1.0,201.81,201.8,14.50969861]
[1738821542777,1.0,201.81,201.8,14.63518861]
[1738821544992,1.0,201.81,201.76,1.611]
[1738821544993,1.0,201.81,201.78,9.42880861]
[1738821545287,1.0,201.77,201.76,0.25098]
[1738821545675,1.0,201.77,201.76,9.67978861]
[1738821546990,1.0,201.77,201.76,14.63608861]
[1738821550767,0.063,201.81,201.77,13.53733853]
[1738821550972,0.063,201.81,201.8,9.42880861]
[1738821551698,0.063,201.82,201.8,9.42880861]
[1738821551990,0.063,201.82,201.81,9.42880861]
[1738821552291,0.063,201.8,201.79,9.42880861]
[1738821552471,0.063,201.8,201.78,9.42880861]
[1738821557973,0.063,201.8,201.78,9.45880861]
[1738821558196,0.063,201.8,201.79,9.42880861]
[1738821573911,0.063,201.8,201.78,9.45880861]
[1738821575708,0.063,201.8,201.78,0.03]
[1738821596132,0.063,201.8,201.78,9.45880861]
[1738821602450,0.063,201.8,201.79,9.42880861]
[1738821604856,0.063,201.81,201.79,14.38440861]
[1738821605025,0.063,201.81,201.8,9.42880861]
[1738821608749,0.063,201.81,201.8,60.80687158]
[1738821609139,6.90764969,201.84,201.81,4.9551]
[1738821609451,6.90764969,201.84,201.83,9.42880861]
[1738821610351,6.90764969,201.84,201.83,14.38340861]
[1738821610851,6.90764969,201.84,201.83,15.94440861]
[1738821611530,19.15748113,201.91,201.83,15.94440861]
[1738821611738,19.15748113,201.91,201.86,9.42880861]
[1738821612041,19.15748113,201.91,201.87,9.42880861]
[1738821612649,19.15748113,201.91,201.86,9.42880861]
[1738821613452,3.72,201.91,201.86,9.42880861]
[1738821613754,29.19549862,201.96,201.9,47.14404305]
[1738821613755,15.43748113,201.96,201.9,47.14404305]
[1738821613953,15.43748113,201.96,201.95,9.42880861]
[1738821615858,10.341,202.01,201.95,9.42880861]
[1738821616055,16.21964628,202.01,201.95,9.42880861]
[1738821616261,25.64845489,202.01,201.94,9.42880861]
[1738821616460,16.21964628,202.01,201.95,9.42880861]
[1738821617961,16.21964628,202.01,201.96,9.42880861]
[1738821618161,15.2913,202.01,201.97,9.42880861]
[1738821619265,15.2913,202.01,201.96,9.42880861]
[1738821622671,3.72,202.01,201.97,9.42880861]
[1738821625275,8.6702,202.01,201.96,9.42880861]
[1738821626076,8.6702,202.01,201.92,9.42880861]
[1738821626077,9.42880861,201.99,201.92,9.42880861]
[1738821626771,91.82880861,201.99,201.92,9.42880861]
[1738821626973,92.75731242,201.98,201.91,9.42880861]
[1738821627576,82.4,201.98,201.93,9.42880861]
[1738821628179,87.351,201.98,201.93,9.42880861]
[1738821628771,82.4,201.98,201.95,9.42880861]
[1738821628981,3.72,202.01,201.97,9.42880861]
[1738821629292,3.72,202.01,201.98,9.42880861]
[1738821629769,3.72,202.01,201.97,9.42880861]
[1738821629993,87.413,202.02,201.97,9.42880861]
[1738821630167,91.133,202.02,201.97,9.42880861]
[1738821630483,92.133,202.02,201.96,9.42880861]
[1738821631675,100.56180861,202.02,201.95,9.42880861]
[1738821633993,10.3571626,202.01,201.95,9.42880861]
[1738821634155,9.42880861,202.0,201.93,9.42880861]
[1738821634467,9.42880861,202.0,201.91,4.9526]
[1738821634468,100.56180861,202.02,201.95,9.42880861]
[1738821634668,82.463,202.02,201.98,9.42880861]
[1738821634866,86.183,202.02,201.98,9.42880861]
[1738821635061,86.183,202.02,201.97,9.42880861]
[1738821635982,91.133,202.02,201.96,9.42880861]
[1738821638788,101.49013316,202.02,201.95,9.42880861]
[1738821639086,91.133,202.02,201.96,9.42880861]
[1738821639683,86.183,202.02,201.97,9.42880861]
[1738821641387,86.183,202.02,201.98,9.42880861]
[1738821641572,0.063,202.02,202.01,9.42880861]
[1738821642267,0.063,202.02,202.01,23.09163714]
[1738821642869,0.063,202.02,202.01,23.21712714]
[1738821643189,0.063,202.02,202.01,23.34261714]
[1738821643482,0.063,202.02,202.01,28.16732714]
[1738821644188,0.063,202.02,202.01,14.37900861]
[1738821644486,0.063,202.02,202.01,9.42880861]
[1738821645093,0.063,202.02,202.01,23.09163714]
[1738821647469,0.063,202.02,202.01,9.42880861]
[1738821647997,9.49180861,202.02,201.93,9.42880861]
[1738821648182,9.42880861,202.0,201.93,9.42880861]
[1738821650288,9.42880861,202.0,201.93,14.38090861]
[1738821650588,3.72,202.01,201.98,9.42880861]
[1738821650775,82.463,202.02,202.0,9.42880861]
[1738821650973,82.463,202.02,202.01,9.42880861]
[1738821651174,0.063,202.02,202.01,9.42880861]
[1738821652673,0.063,202.02,202.01,14.70278344]
[1738821659600,0.063,202.02,202.01,19.65298344]
[1738821664105,0.063,202.02,202.01,14.70278344]
[1738821664502,0.063,202.02,202.0,14.70278344]
[1738821666107,0.063,202.02,202.01,14.70278344]
[1738821668814,0.063,202.02,202.01,19.65298344]
[1738821670828,0.063,202.02,202.01,33.44130197]
[1738821671133,3.72,202.12,202.05,20.0]
[1738821671344,3.72,202.12,202.11,14.70278344]
[1738821671712,82.4,202.13,202.11,14.70278344]